[Event "HUN-chT Youth 2019"]
[Site "Budapest"]
[Date "2019.10.27"]
[Round "2.21"]
[White "Juhasz, Judit"]
[Black "Koszta, Benedek"]
[Result "0-1"]
[ECO "C06"]
[WhiteElo "2004"]
[BlackElo "2043"]
[Annotator "NA RC"]
[PlyCount "60"]
[EventDate "2019.10.26"]
[EventType "team-tourn"]
[EventCountry "HUN"]
[SourceTitle "playchess.com"]
[Source "ChessBase"]
[SourceQuality "1"]
[TimeControl "5400+30"]

1. e4 {[%emt 0:00:00]} e6 {[%emt 0:00:00]} 2. d4 {[%emt 0:00:00]} d5 {[%emt 0:00:00]} 3. Nd2 {[%emt 0:00:00]} Nf6 {[%emt 0:00:01]} 4. e5 {[%emt 0:00:02]} Nfd7 {[%emt 0:00:07]} 5. Bd3 {[%emt 0:00:12]} c5 {[%emt 0:00:10]} 6. c3 {[%emt 0:00:08]} Nc6 {[%emt 0:00:14]} 7. Ne2 {[%emt 0:00:21]} cxd4 {[%emt 0:00:12]} 8. cxd4 {[%emt 0:00:06]} f6 {[%emt 0:00:19]} 9. exf6 {[%emt 0:00:25]} Nxf6 {[%emt 0:00:09]} 10. Nf3 {[%emt 0:00:40]} Bd6 {[%emt 0:00:46]} 11. O-O {[%emt 0:00:48]} O-O {[%emt 0:00:27]} 12. Bf4 {[%emt 0:01:31]} Bxf4 {[%emt 0:04:37]} 13. Nxf4 {[%emt 0:00:13]} Ne4 {[%emt 0:01:13]} 14. Qc1 {[%emt 0:00:41]} Qf6 {[%emt 0:01:15]} 15. Nh5 {[%emt 0:03:18]} Qg6 {[%emt 0:02:26]} 16. Nf4 {[%emt 0:07:37]} Qg4 {[%emt 0:12:19]} 17. g3 {[%emt 0:04:53]} g5 {[%emt 0:03:56]} 18. h3 {[%emt 0:02:07]} Qf5 {[%emt 0:01:28]} 19. Ne1 {[%emt 0:14:00]} gxf4 {[%emt 0:02:41]} 20. f3 {[%emt 0:00:20]} Qxh3 {[%emt 0:01:18]} 21. fxe4 {[%emt 0:04:36]} Qxg3+ {[%emt 0:00:40]} 22. Ng2 {[%emt 0:03:06]} Qxd3 {[%emt 0:02:11]} 23. Rxf4 {[%emt 0:00:25]} Rxf4 {[%emt 0:02:19]} 24. Qxf4 {[%emt 0:00:06]} Qxe4 {[%emt 0:01:59]} 25. Qg5+ {[%emt 0:01:42]} Qg6 {[%emt 0:01:31]} 26. Qh4 {[%emt 0:00:12]} Bd7 {[%emt 0:01:26]} 27. Kh2 {[%emt 0:00:47]} Kh8 {[%emt 0:03:52]} 28. Nf4 {[%emt 0:02:36]} Qf5 {[%emt 0:01:42]} 29. Rg1 {[%emt 0:05:11]} Rg8 {[%emt 0:02:07]} 30. Rf1 {[%emt 0:00:09]} Qg5 {[%emt 0:01:02]} 0-1

[Event "HUN-chT Youth 2019"]
[Site "Budapest"]
[Date "2019.10.27"]
[Round "2.22"]
[White "Megyaszai, Balazs"]
[Black "Bakos, Balazs"]
[Result "1-0"]
[ECO "B48"]
[WhiteElo "1894"]
[BlackElo "2408"]
[Annotator "NA"]
[PlyCount "74"]
[EventDate "2019.10.26"]
[EventType "team-tourn"]
[EventCountry "HUN"]
[SourceTitle "playchess.com"]
[Source "ChessBase"]
[SourceQuality "1"]
[TimeControl "5400+30"]

1. e4 {[%emt 0:00:00]} c5 {[%emt 0:00:00]} 2. Nf3 {[%emt 0:00:00]} e6 {[%emt 0:00:00]} 3. d4 {[%emt 0:00:32]} cxd4 {[%emt 0:00:00]} 4. Nxd4 {[%emt 0:00:50]} Nc6 {[%emt 0:00:24]} 5. Nc3 {[%emt 0:00:51]} Qc7 {[%emt 0:01:15]} 6. Be3 {[%emt 0:02:43]} a6 {[%emt 0:03:10]} 7. Qf3 {[%emt 0:03:53] B48: Sicilian: Taimanov: 5 Nc3 Qc7 6 Be3 a6 without Be2} Nf6 {[%emt 0:13:48]} (7... Ne5 8. Qg3 h5 9. Bg5 f6 10. Bf4 Ne7 11. O-O-O Kf7 12. Bxe5 Qxe5 13. f4 h4 14. Qe3 Qc7 {1-0 (35) Ding,L (2811)-Shankland,S (2705) chess.com INT 2019}) 8. O-O-O {[%emt 0:07:11]} Rb8 {[%emt 0:05:07]} 9. Be2 {[%emt 0:11:30]} b5 {[%emt 0:09:29]} 10. Nxc6 {[%emt 0:07:19]} dxc6 {[%emt 0:01:57]} 11. Bg5 $146 {[%emt 0:06:22]} ({Predecessor:} 11. g4 b4 12. Na4 c5 13. g5 Nd7 14. Bf4 e5 {0-1 (36) Matovic,M (2234)-Sylvan,J (2336) Porto Carras 2018}) 11... Be7 {[%emt 0:02:28]} 12. e5 {[%emt 0:06:28]} Nd5 {[%emt 0:09:48]} 13. Bxe7 {[%emt 0:03:08]} Qxe7 {[%emt 0:05:55]} 14. Ne4 {[%emt 0:03:26]} O-O {[%emt 0:03:49]} 15. Qg3 {[%emt 0:03:35]} Bb7 {[%emt 0:15:47]} 16. Nd6 {[%emt 0:03:28]} c5 {[%emt 0:04:19]} 17. Bf3 {[%emt 0:01:16]} Rfd8 {[%emt 0:01:49]} 18. h4 {[%emt 0:02:36]} c4 {[%emt 0:04:17]} 19. Kb1 {[%emt 0:07:12]} Qc7 {[%emt 0:07:30]} 20. h5 {[%emt 0:08:17]} h6 {[%emt 0:06:00]} (20... f5 $16) 21. Rh4 {[%emt 0:03:46]} (21. Bxd5 $18 Bxd5 22. Rxd5 exd5 {[#]} 23. Nf5 $1 {[%mdl 512]}) 21... Rxd6 {[%emt 0:02:54]} (21... Kh7 $16 {might work better.}) 22. exd6 {[%emt 0:00:58]} Qd8 {[%emt 0:00:39]} 23. Rg4 {[%emt 0:02:26]} Qf6 $2 {[%emt 0:00:33]} (23... Qf8 24. Qe5 Kh8) 24. Rdd4 {[%emt 0:03:17]} Rd8 $18 {[%emt 0:00:29]} (24... Kh8 $142 25. d7 Rd8) 25. Rxg7+ {[%emt 0:02:26]} Qxg7 {[%emt 0:00:28]} 26. Rg4 {[%emt 0:00:12]} Qxg4 {[%emt 0:00:03]} 27. Qxg4+ {[%emt 0:00:34]} Kf8 {[%emt 0:00:34]} 28. Bxd5 {[%emt 0:01:27]} Bxd5 {[%emt 0:00:02]} 29. Qf4 {[%emt 0:00:41]} Ke8 {[%emt 0:00:05]} 30. a3 {[%emt 0:01:29]} Bxg2 {[%emt 0:01:18]} 31. Qxh6 {[%emt 0:02:32]} Rxd6 {[%emt 0:00:41]} 32. Qe3 {[%emt 0:01:13]} Rd1+ {[%emt 0:00:43]} 33. Ka2 {[%emt 0:00:04]} Bd5 {[%emt 0:00:14]} 34. h6 {[%emt 0:01:10]} Rh1 {[%emt 0:00:38]} 35. Qg5 {[%emt 0:00:42]} c3+ {[%emt 0:00:32]} 36. b3 {[%emt 0:00:11]} Be4 {[%emt 0:00:13]} 37. Qe3 {[%emt 0:00:54]} Bf5 1-0

[Event "HUN-chT Youth 2019"]
[Site "Budapest"]
[Date "2019.10.27"]
[Round "2.23"]
[White "Erseki, Aron"]
[Black "Kocsmar, Akos"]
[Result "1/2-1/2"]
[ECO "B12"]
[WhiteElo "1847"]
[BlackElo "1916"]
[Annotator "NA RC"]
[PlyCount "84"]
[EventDate "2019.10.26"]
[EventType "team-tourn"]
[EventCountry "HUN"]
[SourceTitle "playchess.com"]
[Source "ChessBase"]
[SourceQuality "1"]
[TimeControl "5400+30"]

1. e4 {[%emt 0:00:00]} c6 {[%emt 0:00:00]} 2. d4 {[%emt 0:00:41]} d5 {[%emt 0:00:07]} 3. e5 {[%emt 0:05:21]} Bf5 {[%emt 0:01:23]} 4. Ne2 {[%emt 0:01:51]} e6 {[%emt 0:00:34]} 5. Ng3 {[%emt 0:01:13]} Bg6 {[%emt 0:00:12]} 6. Bd3 {[%emt 0:08:45]} Bxd3 {[%emt 0:02:26]} 7. Qxd3 {[%emt 0:00:46]} Nd7 {[%emt 0:00:05]} 8. O-O {[%emt 0:01:05]} c5 {[%emt 0:00:12]} 9. c3 {[%emt 0:01:29]} h5 {[%emt 0:01:06]} 10. f4 {[%emt 0:02:19]} g6 {[%emt 0:00:25]} 11. Nd2 {[%emt 0:06:39]} Be7 {[%emt 0:02:22]} 12. Nf3 {[%emt 0:17:24]} h4 {[%emt 0:01:37]} 13. Nh1 {[%emt 0:01:11]} Nh6 {[%emt 0:02:56]} 14. Nf2 {[%emt 0:01:09]} Nf5 {[%emt 0:00:22]} 15. Ng4 {[%emt 0:01:14]} Qb6 {[%emt 0:00:38]} 16. Ne3 {[%emt 0:04:06]} O-O-O {[%emt 0:01:25]} 17. a4 {[%emt 0:05:39]} Kb8 {[%emt 0:02:58]} 18. a5 {[%emt 0:09:20]} Qc6 {[%emt 0:03:39]} 19. Bd2 {[%emt 0:02:16]} Rdg8 {[%emt 0:02:23]} 20. Rfc1 {[%emt 0:10:05]} Rh5 {[%emt 0:02:00]} 21. c4 {[%emt 0:03:10]} dxc4 {[%emt 0:00:41]} 22. Rxc4 {[%emt 0:01:21]} h3 {[%emt 0:01:13]} 23. Nxf5 {[%emt 0:03:36]} gxf5 {[%emt 0:01:18]} 24. g3 {[%emt 0:00:30]} Qd5 {[%emt 0:02:04]} 25. Rac1 {[%emt 0:03:58]} Rg4 {[%emt 0:01:45]} 26. Kf2 {[%emt 0:01:29]} Rh8 {[%emt 0:02:50]} 27. Qc2 {[%emt 0:01:58]} f6 {[%emt 0:02:38]} 28. dxc5 {[%emt 0:00:56]} Rc8 {[%emt 0:00:57]} 29. Be3 {[%emt 0:02:15]} fxe5 {[%emt 0:01:20]} 30. c6 {[%emt 0:01:19]} exf4 {[%emt 0:06:32]} 31. Bxf4+ {[%emt 0:00:42]} Rxf4 {[%emt 0:00:04]} 32. gxf4 {[%emt 0:00:18]} Nf6 {[%emt 0:02:06]} 33. cxb7 {[%emt 0:01:08]} Bc5+ {[%emt 0:01:56]} 34. Ke2 {[%emt 0:01:00]} Rg8 {[%emt 0:00:47]} 35. Rxc5 Rg2+ {[%emt 0:00:11]} 36. Ke1 {[%emt 0:01:03]} Rxc2 {[%emt 0:00:13]} 37. Rxd5 {[%emt 0:00:40]} Rxc1+ {[%emt 0:00:24]} 38. Rd1 {[%emt 0:00:21]} Rxd1+ {[%emt 0:00:17]} 39. Kxd1 {[%emt 0:00:02]} Kxb7 {[%emt 0:00:01]} 40. Ng5 {[%emt 0:00:43]} Ng4 {[%emt 0:02:08]} 41. Nxe6 {[%emt 0:00:29]} Nxh2 {[%emt 0:00:02]} 42. Ng5 {[%emt 0:00:09]} Ka6 {[%emt 0:00:31]} 1/2-1/2

[Event "HUN-chT Youth 2019"]
[Site "Budapest"]
[Date "2019.10.27"]
[Round "2.24"]
[White "Kis, Izabella"]
[Black "Bencze, Balazs Dominik"]
[Result "0-1"]
[ECO "B02"]
[WhiteElo "1523"]
[BlackElo "1779"]
[Annotator "NA RC"]
[PlyCount "78"]
[EventDate "2019.10.26"]
[EventType "team-tourn"]
[EventCountry "HUN"]
[SourceTitle "playchess.com"]
[Source "ChessBase"]
[SourceQuality "1"]
[TimeControl "5400+30"]

1. e4 {[%emt 0:00:00]} Nf6 {[%emt 0:00:00]} 2. e5 {[%emt 0:00:42]} Nd5 {[%emt 0:00:00]} 3. c4 {[%emt 0:00:28]} Nb6 {[%emt 0:00:00]} 4. Nc3 {[%emt 0:01:45]} Nc6 {[%emt 0:00:26]} 5. c5 {[%emt 0:02:46]} Nxe5 {[%emt 0:00:10]} 6. cxb6 {[%emt 0:00:35]} axb6 {[%emt 0:00:04]} 7. d4 {[%emt 0:00:47]} Nc6 {[%emt 0:00:22]} 8. Nf3 {[%emt 0:00:35]} d5 {[%emt 0:00:35]} 9. Bf4 {[%emt 0:01:49]} e6 {[%emt 0:00:56]} 10. Bb5 {[%emt 0:04:28]} Bb4 {[%emt 0:01:53]} 11. O-O {[%emt 0:02:23]} O-O {[%emt 0:00:56]} 12. Qc2 {[%emt 0:02:21]} Bd7 {[%emt 0:02:01]} 13. a3 {[%emt 0:04:16]} Be7 {[%emt 0:00:32]} 14. Rfe1 {[%emt 0:00:51]} f6 {[%emt 0:03:39]} 15. Bd3 {[%emt 0:03:29]} f5 {[%emt 0:04:29]} 16. Nb5 {[%emt 0:01:09]} Rc8 {[%emt 0:03:19]} 17. Rac1 {[%emt 0:01:57]} g5 {[%emt 0:03:42]} 18. Be5 {[%emt 0:02:07]} g4 {[%emt 0:05:25]} 19. Nd2 {[%emt 0:00:41]} Nxe5 {[%emt 0:01:38]} 20. dxe5 {[%emt 0:00:37]} c5 {[%emt 0:02:56]} 21. Nc3 {[%emt 0:03:02]} c4 {[%emt 0:08:53]} 22. Bf1 {[%emt 0:02:11]} d4 {[%emt 0:08:55]} 23. Nd1 {[%emt 0:01:08]} b5 {[%emt 0:04:17]} 24. f3 {[%emt 0:02:42]} Bc5 {[%emt 0:05:15]} 25. Kh1 {[%emt 0:01:41]} g3 {[%emt 0:02:06]} 26. h3 {[%emt 0:01:54]} Qg5 {[%emt 0:08:27]} 27. Ra1 {[%emt 0:04:45]} Ba7 {[%emt 0:11:55]} 28. Qc1 {[%emt 0:03:30]} Qg7 {[%emt 0:03:13]} 29. f4 {[%emt 0:05:05]} Bc6 {[%emt 0:04:17]} 30. Rb1 {[%emt 0:03:03]} Qh6 {[%emt 0:03:28]} 31. Nf3 {[%emt 0:00:56]} Be4 {[%emt 0:01:49]} 32. Ra1 {[%emt 0:01:16]} Rfd8 {[%emt 0:01:21]} 33. Ng5 {[%emt 0:02:45]} Bc6 {[%emt 0:01:32]} 34. Qc2 {[%emt 0:01:24]} Rd7 {[%emt 0:04:43]} 35. Rc1 {[%emt 0:02:19]} d3 {[%emt 0:00:58]} 36. Qd2 {[%emt 0:00:44]} Rg7 {[%emt 0:00:32]} 37. Nc3 {[%emt 0:01:45]} Rxg5 {[%emt 0:00:55]} 38. Ne4 {[%emt 0:01:24]} Rg7 {[%emt 0:00:59]} 39. Nf6+ {[%emt 0:01:07]} Kh8 0-1

[Event "HUN-chT Youth 2019"]
[Site "Budapest"]
[Date "2019.10.27"]
[Round "2.25"]
[White "Bohus, Adam"]
[Black "Karacsonyi, Gellert"]
[Result "0-1"]
[ECO "D37"]
[WhiteElo "2229"]
[BlackElo "2301"]
[Annotator "NA"]
[PlyCount "74"]
[EventDate "2019.10.26"]
[EventType "team-tourn"]
[EventCountry "HUN"]
[SourceTitle "playchess.com"]
[Source "ChessBase"]
[SourceQuality "1"]
[TimeControl "5400+30"]

1. d4 {[%emt 0:00:00]} Nf6 {[%emt 0:00:00]} 2. c4 {[%emt 0:00:00]} e6 {[%emt 0:00:00]} 3. Nf3 {[%emt 0:00:00]} d5 {[%emt 0:00:10]} 4. Nc3 {[%emt 0:00:10]} Nbd7 {[%emt 0:00:34]} 5. Bf4 {[%emt 0:00:18]} dxc4 {[%emt 0:00:53]} 6. e3 {[%emt 0:00:22] D37: Queen's Gambit Declined: 5 Bf4} b5 {[%emt 0:00:16]} 7. Nxb5 {[%emt 0:00:21]} Bb4+ {[%emt 0:00:13]} 8. Nc3 {[%emt 0:00:26]} Nd5 {[%emt 0:00:10]} 9. Rc1 {[%emt 0:00:27]} N7b6 {[%emt 0:03:15]} 10. Bg3 {[%emt 0:01:15]} O-O {[%emt 0:01:43]} (10... c5 11. Be2 O-O 12. O-O Bb7 13. Nxd5 Qxd5 {0-1 (42) Ding,L (2805)-Aronian,L (2765) Saint Louis 2019}) 11. Be2 {[%emt 0:00:14]} Bb7 {[%emt 0:02:15]} 12. O-O {[%emt 0:02:14]} Nxc3 {[%emt 0:01:01]} 13. bxc3 {[%emt 0:00:14]} Ba3 {[%emt 0:00:14]} 14. Rc2 {[%emt 0:15:02] [#]} Rb8 $146 {[%emt 0:23:20]} ({Predecessor:} 14... c5 15. Rd2 Qe7 {½-½ (15) Kovacs,G (2456)-Erdos,V (2585) Hungary 2017}) 15. Ne5 {[%emt 0:10:42]} Bd5 {[%emt 0:06:32]} 16. Bf3 {[%emt 0:06:51]} Qe8 {[%emt 0:10:32]} 17. Qe2 {[%emt 0:17:48]} f6 {[%emt 0:13:49]} 18. e4 {[%emt 0:00:23]} Bb7 {[%emt 0:00:43]} 19. Ng4 {[%emt 0:01:00]} Rc8 {[%emt 0:01:26]} 20. Re1 {[%emt 0:13:04]} Qb5 {[%emt 0:03:36]} 21. Ne3 {[%emt 0:07:14]} Rf7 {[%emt 0:05:54]} 22. Bh5 {[%emt 0:12:42]} Re7 {[%emt 0:03:24]} 23. e5 {[%emt 0:03:01]} f5 {[%emt 0:04:02]} 24. Bh4 {[%emt 0:01:41]} Rd7 {[%emt 0:00:41]} 25. Nxf5 {[%emt 0:03:20]} (25. Bf3 $11 {remains equal.} Bxf3 26. Qxf3) 25... exf5 {[%emt 0:00:46]} 26. e6 {[%emt 0:00:02] [#]} Re7 $1 {[%emt 0:00:47]} 27. Bf7+ {[%emt 0:00:50]} Kh8 {[%emt 0:04:02]} 28. Qh5 $17 {[%emt 0:00:52]} Nd5 {[%emt 0:07:53]} 29. Qxf5 {[%emt 0:03:24]} Rf8 {[%emt 0:05:05]} 30. Rce2 {[%emt 0:00:01]} Nxc3 {[%emt 0:00:57]} 31. Re5 {[%emt 0:00:01]} Rexf7 {[%emt 0:00:27]} 32. Qxf7 {[%emt 0:02:04]} Qc6 {[%emt 0:00:45]} 33. d5 {[%emt 0:00:05]} Nxd5 {[%emt 0:00:18]} 34. Qd7 {[%emt 0:01:08]} Ne7 {[%emt 0:00:45]} 35. f3 {[%emt 0:00:32]} Bc5+ {[%emt 0:00:30]} 36. Kh1 {[%emt 0:00:00]} Qxf3 {[%emt 0:00:15]} 37. Rg1 {[%emt 0:01:00]} Qxg2+ {[%emt 0:00:05]} 0-1

[Event "HUN-chT Youth 2019"]
[Site "Budapest"]
[Date "2019.10.27"]
[Round "2.27"]
[White "Dibusz, Domonkos"]
[Black "Kocsis, Peter"]
[Result "1/2-1/2"]
[ECO "C61"]
[WhiteElo "2088"]
[BlackElo "1929"]
[Annotator "NA RC"]
[PlyCount "69"]
[EventDate "2019.10.26"]
[EventType "team-tourn"]
[EventCountry "HUN"]
[SourceTitle "playchess.com"]
[Source "ChessBase"]
[SourceQuality "1"]
[TimeControl "5400+30"]

1. e4 {[%emt 0:00:00]} e5 {[%emt 0:00:00]} 2. Nf3 {[%emt 0:00:00]} Nc6 {[%emt 0:00:00]} 3. Bb5 {[%emt 0:00:04]} Nd4 {[%emt 0:00:00]} 4. Nxd4 {[%emt 0:01:57]} exd4 {[%emt 0:00:00]} 5. Bc4 {[%emt 0:00:33]} Nf6 {[%emt 0:00:26]} 6. d3 {[%emt 0:01:44]} d5 {[%emt 0:02:13]} 7. exd5 {[%emt 0:01:50]} Nxd5 {[%emt 0:00:09]} 8. O-O {[%emt 0:01:02]} Be6 {[%emt 0:02:58]} 9. Re1 {[%emt 0:02:22]} Qd7 {[%emt 0:09:29]} 10. c3 {[%emt 0:07:18]} dxc3 {[%emt 0:04:25]} 11. bxc3 {[%emt 0:05:37]} O-O-O {[%emt 0:00:27]} 12. Bg5 {[%emt 0:09:43]} f6 {[%emt 0:04:18]} 13. Be3 {[%emt 0:17:38]} Nxe3 {[%emt 0:04:45]} 14. Bxe6 {[%emt 0:01:34]} Nxd1 {[%emt 0:00:02]} 15. Bxd7+ {[%emt 0:00:09]} Rxd7 {[%emt 0:00:04]} 16. Rxd1 {[%emt 0:00:08]} Bc5 {[%emt 0:02:11]} 17. d4 {[%emt 0:04:35]} Rhd8 {[%emt 0:00:59]} 18. Nd2 {[%emt 0:12:04]} Bxd4 {[%emt 0:01:08]} 19. Ne4 {[%emt 0:00:32]} f5 {[%emt 0:09:57]} 20. Rxd4 {[%emt 0:07:02]} Rxd4 {[%emt 0:00:05]} 21. cxd4 {[%emt 0:00:11]} fxe4 {[%emt 0:00:03]} 22. Rd1 {[%emt 0:00:16]} c5 {[%emt 0:04:50]} 23. Rc1 {[%emt 0:01:34]} Rxd4 {[%emt 0:00:03]} 24. Rxc5+ {[%emt 0:00:05]} Kd7 {[%emt 0:00:13]} 25. Kf1 {[%emt 0:00:34]} Rd2 {[%emt 0:03:41]} 26. a4 {[%emt 0:03:55]} Rd4 {[%emt 0:01:23]} 27. a5 {[%emt 0:04:50]} Ke6 {[%emt 0:06:43]} 28. Rb5 {[%emt 0:02:13]} Rd7 {[%emt 0:00:20]} 29. Ke2 {[%emt 0:00:15]} Kd6 {[%emt 0:02:32]} 30. Ke3 {[%emt 0:01:32]} Re7 {[%emt 0:00:52]} 31. Kd4 {[%emt 0:00:23]} Kc6 {[%emt 0:09:21]} 32. Rc5+ {[%emt 0:00:13]} Kd6 {[%emt 0:00:10]} 33. Rb5 {[%emt 0:00:08]} Kc6 {[%emt 0:06:00]} 34. Rc5+ {[%emt 0:00:07]} Kd6 {[%emt 0:00:05]} 35. Rb5 {[%emt 0:00:05]} 1/2-1/2

[Event "HUN-chT Youth 2019"]
[Site "Budapest"]
[Date "2019.10.27"]
[Round "2.28"]
[White "Sulyok, Eszter"]
[Black "Kovacs, Gabor Etele"]
[Result "1-0"]
[ECO "A14"]
[WhiteElo "1893"]
[BlackElo "2053"]
[Annotator "NA"]
[PlyCount "119"]
[EventDate "2019.10.26"]
[EventType "team-tourn"]
[EventCountry "HUN"]
[SourceTitle "playchess.com"]
[Source "ChessBase"]
[SourceQuality "1"]
[TimeControl "5400+30"]

1. c4 {[%emt 0:00:00]} e6 {[%emt 0:00:00]} 2. g3 {[%emt 0:00:00]} d5 {[%emt 0:00:13]} 3. Bg2 {[%emt 0:00:00]} Nf6 {[%emt 0:00:15]} 4. Nf3 {[%emt 0:00:04]} Be7 {[%emt 0:00:29]} 5. O-O {[%emt 0:00:41]} O-O {[%emt 0:00:22]} 6. b3 {[%emt 0:00:40]} b6 {[%emt 0:07:14]} 7. Bb2 {[%emt 0:03:28]} Nbd7 {[%emt 0:03:49]} 8. d4 {[%emt 0:07:15]} Bb7 {[%emt 0:02:57]} 9. Nc3 {[%emt 0:03:54]} Rc8 {[%emt 0:02:44]} 10. Ne5 {[%emt 0:05:04]} c6 {[%emt 0:05:50]} 11. Nd3 {[%emt 0:08:37]} Ba6 {[%emt 0:08:03]} 12. cxd5 {[%emt 0:03:12]} cxd5 {[%emt 0:00:16]} 13. Rc1 {[%emt 0:00:34]} h6 {[%emt 0:03:21]} 14. Qd2 {[%emt 0:02:48]} Bxd3 {[%emt 0:14:21]} 15. Qxd3 {[%emt 0:00:43]} Nb8 {[%emt 0:00:20]} 16. Rc2 {[%emt 0:04:36]} Nc6 {[%emt 0:01:44]} 17. a3 {[%emt 0:00:07]} Na5 {[%emt 0:03:14]} 18. Nb1 {[%emt 0:11:02]} Qd7 {[%emt 0:02:59]} 19. Rfc1 {[%emt 0:00:40]} Bd6 {[%emt 0:00:58]} 20. Nd2 {[%emt 0:02:09]} Rxc2 {[%emt 0:04:36]} 21. Qxc2 {[%emt 0:02:25]} Rd8 {[%emt 0:08:41]} 22. e4 {[%emt 0:09:15]} dxe4 {[%emt 0:04:54]} 23. Nxe4 {[%emt 0:00:10]} Nxe4 {[%emt 0:02:47]} 24. Bxe4 {[%emt 0:00:07]} Bb8 {[%emt 0:01:04]} 25. Qc3 {[%emt 0:02:16]} Nb7 {[%emt 0:10:59]} 26. b4 {[%emt 0:05:39]} Nd6 {[%emt 0:05:24]} 27. Bc6 {[%emt 0:01:43]} Qe7 {[%emt 0:00:49]} 28. d5 {[%emt 0:00:42]} f6 {[%emt 0:00:17]} 29. Re1 {[%emt 0:05:12]} e5 {[%emt 0:00:08]} 30. b5 {[%emt 0:00:42]} Nb7 31. Qb3 {[%emt 0:08:47]} Kh8 {[%emt 0:03:31]} 32. Bc3 {[%emt 0:00:18]} Nc5 {[%emt 0:00:52]} 33. Qc4 {[%emt 0:00:21]} Qf7 {[%emt 0:00:31]} 34. Bb4 {[%emt 0:01:21]} Bd6 {[%emt 0:00:04]} 35. Bd2 {[%emt 0:00:58]} Qh5 {[%emt 0:00:45]} 36. Be3 {[%emt 0:01:27]} Qf3 {[%emt 0:01:40]} 37. Qe2 {[%emt 0:01:05]} Qf5 {[%emt 0:00:11]} 38. Rd1 {[%emt 0:00:35]} Na4 {[%emt 0:00:38]} 39. Qd3 {[%emt 0:01:42]} Qh5 {[%emt 0:00:13]} 40. Rc1 {[%emt 0:00:22]} Nc5 {[%emt 0:00:44]} 41. Qc2 {[%emt 0:00:53]} Qg4 {[%emt 0:01:01]} 42. Bxc5 {[%emt 0:00:46]} Bxc5 {[%emt 0:00:00]} 43. a4 {[%emt 0:00:35]} Qf3 {[%emt 0:00:12]} 44. Re1 {[%emt 0:00:30]} Rd6 {[%emt 0:00:39]} 45. a5 {[%emt 0:00:26]} Rxd5 {[%emt 0:02:01]} 46. Bxd5 {[%emt 0:00:14]} Qxd5 {[%emt 0:00:02]} 47. Rd1 {[%emt 0:00:12]} Bd4 {[%emt 0:00:14]} 48. axb6 {[%emt 0:00:32]} axb6 {[%emt 0:00:09]} 49. Rc1 {[%emt 0:01:09]} Bc5 {[%emt 0:00:33]} 50. Qc4 {[%emt 0:01:03]} Qd2 {[%emt 0:00:50]} 51. Rc2 {[%emt 0:01:49]} Qd7 {[%emt 0:00:50]} 52. Ra2 {[%emt 0:00:29]} Qb7 {[%emt 0:00:26]} 53. Qa4 {[%emt 0:00:23]} Qf7 {[%emt 0:00:45]} 54. Rd2 {[%emt 0:00:40]} Bd4 {[%emt 0:00:13]} 55. Rc2 {[%emt 0:00:40]} Bc5 {[%emt 0:00:10]} 56. Qa8+ {[%emt 0:00:29]} Kh7 {[%emt 0:00:01]} 57. Qe4+ {[%emt 0:00:07]} Kg8 {[%emt 0:00:33]} 58. Qc4 {[%emt 0:00:23]} Qxc4 {[%emt 0:00:11]} 59. Rxc4 {[%emt 0:00:03]} Kf7 {[%emt 0:00:07]} 60. Rxc5 {[%emt 0:00:23]} 1-0

[Event "HUN-chT Youth 2019"]
[Site "Budapest"]
[Date "2019.10.27"]
[Round "2.29"]
[White "Giang, Tran Nam"]
[Black "Szabo, Miklos"]
[Result "1-0"]
[ECO "C78"]
[WhiteElo "2028"]
[BlackElo "1796"]
[Annotator "NA RC"]
[PlyCount "75"]
[EventDate "2019.10.26"]
[EventType "team-tourn"]
[EventCountry "HUN"]
[SourceTitle "playchess.com"]
[Source "ChessBase"]
[SourceQuality "1"]
[TimeControl "5400+30"]

1. e4 {[%emt 0:00:00]} e5 {[%emt 0:00:00]} 2. Nf3 {[%emt 0:00:00]} Nc6 {[%emt 0:00:00]} 3. Bb5 {[%emt 0:00:00]} a6 {[%emt 0:00:49]} 4. Ba4 {[%emt 0:00:00]} Nf6 {[%emt 0:00:21]} 5. O-O {[%emt 0:00:12]} Bd6 {[%emt 0:01:55]} 6. Re1 {[%emt 0:02:40]} b5 {[%emt 0:02:24]} 7. Bb3 {[%emt 0:00:14]} Bb7 {[%emt 0:00:47]} 8. c3 {[%emt 0:00:56]} O-O {[%emt 0:01:45]} 9. d4 {[%emt 0:02:36]} h6 {[%emt 0:00:46]} 10. dxe5 {[%emt 0:04:43]} Nxe5 {[%emt 0:01:49]} 11. Nxe5 {[%emt 0:03:56]} Bxe5 {[%emt 0:00:01]} 12. Nd2 {[%emt 0:00:33]} c5 {[%emt 0:05:17]} 13. Nf3 {[%emt 0:03:29]} Bc7 {[%emt 0:03:12]} 14. e5 {[%emt 0:04:10]} Ng4 {[%emt 0:06:12]} 15. Bf4 {[%emt 0:02:27]} c4 {[%emt 0:06:24]} 16. Bc2 {[%emt 0:01:11]} Re8 {[%emt 0:22:17]} 17. Be4 {[%emt 0:12:44]} Bxe4 {[%emt 0:02:02]} 18. Rxe4 {[%emt 0:00:16]} d6 {[%emt 0:20:02]} 19. Rd4 {[%emt 0:04:05]} Bb6 {[%emt 0:00:10]} 20. Rd2 {[%emt 0:00:55]} d5 {[%emt 0:05:40]} 21. Nd4 {[%emt 0:03:13]} Qc8 {[%emt 0:04:50]} 22. Re2 {[%emt 0:05:06]} Bc7 {[%emt 0:01:24]} 23. Qe1 {[%emt 0:02:33]} f6 {[%emt 0:02:51]} 24. Nf3 {[%emt 0:08:19]} Qb8 {[%emt 0:01:07]} 25. Qd2 {[%emt 0:04:57]} fxe5 {[%emt 0:03:13]} 26. Qxd5+ Kh8 27. Bg3 {[%emt 0:01:56]} Nf6 {[%emt 0:00:49]} 28. Qd2 {[%emt 0:03:11]} e4 {[%emt 0:04:24]} 29. Nd4 {[%emt 0:01:17]} Bxg3 {[%emt 0:00:23]} 30. hxg3 {[%emt 0:00:02]} Qb7 {[%emt 0:00:38]} 31. Rae1 {[%emt 0:00:22]} Rad8 {[%emt 0:00:32]} 32. Qf4 {[%emt 0:00:42]} b4 {[%emt 0:01:47]} 33. Nf5 {[%emt 0:00:49]} Qb8 {[%emt 0:01:14]} 34. Qh4 {[%emt 0:01:39]} Kh7 {[%emt 0:00:32]} 35. Nxh6 {[%emt 0:00:33]} gxh6 {[%emt 0:00:13]} 36. Qxf6 {[%emt 0:00:11]} Rg8 {[%emt 0:00:39]} 37. Rxe4 {[%emt 0:00:17]} Rd6 {[%emt 0:00:06]} 38. Re7+ {[%emt 0:00:08]} 1-0